fUSD/lending_fUSD_20240201
["ID","MTS","AMOUNT","RATE_DAILY","PERIOD"]
[313155526,1706824244030,-161.0549029,0.000379,2]
[313155527,1706824244040,-157.47,0.00037965,2]
[313155528,1706824244049,-15590.69832959,0.00038021,15]
[313155529,1706824244059,-5469.71536777,0.00038021,15]
[313155530,1706824244069,-13558.57748219,0.00038021,15]
[313155531,1706824244079,-4951.87,0.00038252,2]
[313155532,1706824244089,-155.0,0.00038357,2]
[313155533,1706824244098,-269.09203502,0.00038429,2]
[313155534,1706824244107,-157.47,0.00038747,2]
[313155535,1706824244116,-163.06984124,0.0003878,2]
[313155536,1706824244125,-1250.0,0.00038866,2]
[313155537,1706824244135,-1233.0,0.00038866,2]
[313155538,1706824244145,-203.204,0.00038866,2]
[313155539,1706824244155,-9423.2932365,0.0003888,2]
[313155540,1706824244165,-9423.29323646,0.0003888,2]
[313155541,1706824244174,-9423.29323646,0.0003888,2]
[313155542,1706824244184,-9423.29323646,0.0003888,2]
[313155543,1706824244193,-9423.29323646,0.0003888,2]
[313155544,1706824244204,-9423.29323646,0.0003888,2]
[313155545,1706824244216,-1871.58,0.000389,7]
[313155546,1706824244226,-283.25,0.00038928,2]
[313155547,1706824244236,-282.85165656,0.0003898,2]
[313155548,1706824244245,-979.21252284,0.00039,4]
[313155549,1706824244255,-491.43130255,0.00039,4]
[313155550,1706824244265,-1600.0,0.00039,3]
[313155551,1706824244274,-2047.01594879,0.00039,2]
[313155552,1706824244284,-622.13966153,0.00039,4]
[313155553,1706824244293,-250.0,0.00039,2]
[313155554,1706824244303,-300.0,0.00039,2]
[313155555,1706824244312,-338.53595614,0.00039,5]
[313155556,1706824244322,-195.99,0.00039,7]
[313155557,1706824244334,-164.0,0.0003916,2]
[313155558,1706824244343,-1000.0,0.000392,2]
[313155559,1706824244353,-253.62615809,0.00039274,2]
[313155560,1706824244363,-157.47,0.0003953,2]
[313155561,1706824244372,-4951.87,0.0003957,2]
[313155562,1706824244382,-155.0,0.00039727,2]
[313155563,1706824244392,-269.09203502,0.0003985,2]
[313155564,1706824244402,-99779.0985266,0.0003999,5]
[313155565,1706824244411,-261.65891858,0.00039999,31]
[313155566,1706824244421,-83637.07641351,0.0004,4]
[313155567,1706824244430,-350.09036543,0.0004,4]
[313155568,1706824244440,-962.61402678,0.0004,2]
[313155569,1706824244449,-1086.42022373,0.0004,10]
[313155570,1706824244458,-1083.5552476,0.0004,4]
[313155571,1706824244468,-569.51987199,0.0004,4]
[313155572,1706824244478,-2676.84815819,0.0004,4]
[313155573,1706824244486,-2268.13129576,0.0004,4]
[313155574,1706824244495,-155.0,0.0004,4]
[313155575,1706824244504,-5000.0,0.0004,30]
[313155576,1706824244513,-1233.45264282,0.0004,30]
[313155577,1706824244523,-155.0,0.0004,2]
[313155578,1706824244532,-20800.59524066,0.0004,15]
[313155579,1706824244542,-255.0,0.0004,12]
[313155580,1706824244550,-255.0,0.0004,12]
[313155581,1706824244560,-185.13,0.0004,3]
[313155582,1706824244569,-185.13,0.0004,3]
[313155583,1706824244578,-185.13,0.0004,3]
[313155584,1706824244587,-185.13,0.0004,3]
[313155585,1706824244596,-185.13,0.0004,3]
[313155586,1706824244606,-185.13,0.0004,3]
[313155587,1706824244615,-185.13,0.0004,3]
[313155588,1706824244624,-185.13,0.0004,3]
[313155589,1706824244633,-185.13,0.0004,3]
[313155590,1706824244643,-185.13,0.0004,3]
[313155591,1706824244652,-185.13,0.0004,3]
[313155592,1706824244661,-185.13,0.0004,3]
[313155593,1706824244670,-185.13,0.0004,3]
[313155594,1706824244679,-185.13,0.0004,3]
[313155595,1706824244688,-185.13,0.0004,3]
[313155596,1706824244697,-185.13,0.0004,3]
[313155597,1706824244706,-185.13,0.0004,3]
[313155598,1706824244715,-185.13,0.0004,3]
[313155599,1706824244724,-185.13,0.0004,3]
[313155600,1706824244733,-185.13,0.0004,3]
[313155601,1706824244743,-15701.3733223,0.0004,2]
[313155602,1706824244752,-255.0,0.0004,12]
[313155603,1706824244761,-352.39,0.0004,2]
[313155604,1706824244770,-1876.07,0.0004,7]
[313155605,1706824244778,-255.0,0.0004,12]
[313155606,1706824244788,-1871.58,0.000402,7]
[313155607,1706824244799,-1795.16,0.00040268,5]
[313155608,1706824244808,-157.47,0.00040313,2]
[313155609,1706824244817,-4951.87,0.00040888,2]
[313155610,1706824244826,-1650.0,0.00041,3]
[313155611,1706824244838,-170.76794825,0.00041087,10]
[313155612,1706824244848,-157.47,0.00041096,2]
[313155613,1706824244985,-228.08,0.00041096,2]
[313155614,1706824244995,-150.0,0.00041096,2]
[313155615,1706824245004,-155.0,0.00041097,2]
[313155616,1706824245013,-283.25,0.00041192,2]
[313155617,1706824245024,-269.09203502,0.00041271,2]
[313155618,1706824245033,-1876.07,0.000413,7]
[313155619,1706824245043,-613.15038652,0.00041502,13]
[313155620,1706824245054,-184.29365455,0.00041522,4]
[313155621,1706824245063,-1099.235,0.00041866,2]
[313155622,1706824245071,-1233.0,0.00041866,2]
[313155623,1706824245082,-9423.29323646,0.00041866,4]
[313155624,1706824245091,-1000.0,0.000419,2]
[313155625,1706824245100,-500.0,0.0004197,3]
[313155626,1706824245110,-2227.2783913,0.00042,4]
[313155627,1706824245119,-1871.58,0.00042,7]
[313155628,1706824245127,-150.0,0.00042177,2]
[313155629,1706824245137,-319.701474,0.00042466,14]
[313155630,1706824245146,-155.0,0.00042467,2]
[313155631,1706824245155,-410.36422121,0.00042492,7]
[313155632,1706824245165,-1706.23356914,0.00042502,30]
[313155633,1706824245174,-500.0,0.00042502,120]
[313155634,1706824245182,-1745.335257,0.00042502,30]
[313155635,1706824245191,-269.09203502,0.00042692,2]
[313155636,1706824245200,-1876.07,0.000428,7]
[313155637,1706824245209,-154.27376162,0.00042989,60]
[313155638,1706824245218,-215.58842156,0.00042998,4]
[313155639,1706824245227,-54468.23709021,0.00042999,4]
[313155640,1706824245237,-1700.0,0.00043,3]
[313155641,1706824245246,-4430.0420486,0.00043188,2]
[313155642,1706824245255,-2088.88170742,0.00043191,4]
[313155643,1706824245265,-970.2760521,0.00043191,2]
[313155644,1706824245274,-338.2177,0.00043191,4]
[313155645,1706824245284,-4144.98007054,0.00043192,2]
[313155646,1706824245295,-155.00000018,0.00043192,4]
[313155647,1706824245305,-185.13,0.000432,4]
[313155648,1706824245314,-185.13,0.000432,4]
[313155649,1706824245323,-185.13,0.000432,4]
[313155650,1706824245335,-185.13,0.000432,4]
[313155651,1706824245345,-185.13,0.000432,4]
[313155652,1706824245354,-185.13,0.000432,4]
[313155653,1706824245365,-185.13,0.000432,4]
[313155654,1706824245375,-185.13,0.000432,4]
[313155655,1706824245385,-185.13,0.000432,4]
[313155656,1706824245396,-185.13,0.000432,4]
[313155657,1706824245406,-185.13,0.000432,4]
[313155658,1706824245415,-185.13,0.000432,4]
[313155659,1706824245425,-185.13,0.000432,4]
[313155660,1706824245434,-185.13,0.000432,4]
[313155661,1706824245443,-185.13,0.000432,4]
[313155662,1706824245453,-185.13,0.000432,4]
[313155663,1706824245462,-185.13,0.000432,4]
[313155664,1706824245471,-185.13,0.000432,4]
[313155665,1706824245480,-185.13,0.000432,4]
[313155666,1706824245490,-185.13,0.000432,4]
[313155667,1706824245499,-150.0,0.00043259,2]
[313155668,1706824245509,-319.701474,0.00043288,14]
[313155669,1706824245518,-283.25,0.00043456,2]
[313155670,1706824245527,-1871.58,0.000435,7]
[313155671,1706824245536,-670.0,0.0004379,2]
[313155672,1706824245545,-279.26639514,0.00043801,6]
[313155673,1706824245555,-221.8737192,0.00043801,6]
[313155674,1706824245563,-201.62702919,0.00043801,6]
[313155675,1706824245573,-474.05444906,0.00043801,6]
[313155676,1706824245581,-666.0,0.00043835,2]
[313155677,1706824245590,-1055.72,0.00043836,15]
[313155679,1706824245599,-155.0,0.00043837,2]
[313155681,1706824245609,-258.16152366,0.0004385,9]
[313155683,1706824245619,-706.58237833,0.0004385,2]
[313155685,1706824245628,-1280.97607978,0.0004385,2]
[313155686,1706824245637,-1765.39914213,0.00043883,2]
[313155687,1706824245646,-697.0,0.0004389,2]
[313155688,1706824245655,-378.0,0.0004389,2]
[313155689,1706824245665,-6867.24557167,0.00043939,2]
[313155690,1706824245673,-743.03655649,0.00043943,6]
[313155691,1706824245682,-150.0,0.00043989,60]
[313155692,1706824245692,-1014.61894509,0.00044033,4]
[313155693,1706824245701,-319.701474,0.0004411,14]
[313155694,1706824245709,-269.09203502,0.00044113,2]
[313155695,1706824245718,-1876.07,0.000442,7]
[313155696,1706824245727,-150.0,0.0004434,2]
[313155697,1706824245736,-155.0,0.00044491,4]
[313155698,1706824245745,-713.70699156,0.00044565,6]
[313155699,1706824245754,-1000.0,0.000447,2]
[313155700,1706824245764,-1233.0,0.00044866,2]
[313155701,1706824245774,-319.701474,0.00044932,14]
[313155702,1706824245783,-811.71569955,0.00044986,4]
[313155703,1706824245792,-150.0,0.00044989,60]
[313155704,1706824245802,-155.43641126,0.00045,4]
[313155705,1706824245812,-213.28584135,0.00045,120]
[313155706,1706824245823,-9423.29323646,0.00045044,7]
[313155707,1706824245831,-155.0,0.00045207,2]
[313155708,1706824245840,-150.0,0.00045422,2]
[313155709,1706824245849,-269.09203502,0.00045534,2]
[313155710,1706824245858,-283.25,0.0004572,2]
[313155711,1706824245868,-319.701474,0.00045753,14]
[313155712,1706824245876,-502.10785923,0.0004589,2]
[313155713,1706824245885,-228.08,0.0004589,2]
[313155714,1706824245894,-150.0,0.00045989,60]
[313155715,1706824245903,-200.0,0.000463,2]
[313155716,1706824245912,-1004.98173881,0.000463,2]
[313155717,1706824245921,-185.13,0.000465,5]
[313155718,1706824245930,-185.13,0.000465,5]
[313155719,1706824245939,-185.13,0.000465,5]
[313155720,1706824245948,-185.13,0.000465,5]
[313155721,1706824245957,-185.13,0.000465,5]
[313155722,1706824245967,-185.13,0.000465,5]
[313155723,1706824245976,-185.13,0.000465,5]
[313155724,1706824245985,-185.13,0.000465,5]
[313155725,1706824245995,-185.13,0.000465,5]
[313155726,1706824246005,-185.13,0.000465,5]
[313155727,1706824246014,-185.13,0.000465,5]
[313155729,1706824246023,-185.13,0.000465,5]
[313155731,1706824246033,-185.13,0.000465,5]
[313155733,1706824246042,-185.13,0.000465,5]
[313155735,1706824246052,-185.13,0.000465,5]
[313155736,1706824246061,-185.13,0.000465,5]
[313155737,1706824246070,-185.13,0.000465,5]
[313155739,1706824246080,-185.13,0.000465,5]
[313155740,1706824246089,-185.13,0.000465,5]
[313155741,1706824246098,-185.13,0.000465,5]
[313155742,1706824246107,-150.0,0.00046503,2]
[313155743,1706824246116,-155.0,0.00046577,2]
[313155744,1706824246125,-152.38581276,0.00046626,31]
[313155745,1706824246134,-8434.92,0.00046849,120]
[313155746,1706824246146,-1558.96,0.00046849,120]
[313155747,1706824246155,-157.0,0.000469,30]
[313155748,1706824246164,-269.09203502,0.00046955,2]
[313155749,1706824246173,-150.0,0.00046989,60]
[313155750,1706824246182,-789.0,0.000474,2]
[313155751,1706824246191,-1000.0,0.00047489,4]
[313155752,1706824246201,-497.25936062,0.00047491,2]
[313155753,1706824246210,-657.81618824,0.000475,10]
[313155754,1706824246219,-1055.72,0.00047572,15]
[313155755,1706824246228,-150.0,0.00047585,2]
[313155756,1706824246238,-1871.58,0.000476,7]
[313155757,1706824246247,-1233.0,0.00047866,2]
[313155758,1706824246257,-1876.07,0.000479,7]
[313155759,1706824246266,-155.0,0.00047947,2]
[313155760,1706824246275,-283.25,0.00047984,2]
[313155761,1706824246284,-150.0,0.00047989,60]
[313155762,1706824246295,-157.0,0.00048,30]
[313155763,1706824246304,-800.0,0.00048,4]
[313155764,1706824246314,-9423.29323646,0.00048222,9]
[313155765,1706824246325,-150.0,0.0004826,2]
[313155766,1706824246336,-1000.0,0.00048266,30]
[313155767,1706824246345,-1000.0,0.00048266,30]
[313155768,1706824246354,-1000.0,0.00048266,30]
[313155769,1706824246364,-1000.0,0.00048314,30]
[313155770,1706824246373,-269.09203502,0.00048376,2]
[313155771,1706824246381,-174.591833,0.00048416,30]
[313155772,1706824246390,-1000.0,0.00048466,30]
[313155773,1706824246400,-150.0,0.00048666,2]
[313155775,1706824246410,-246.80139967,0.0004869,2]
[313155777,1706824246419,-151.0,0.00048701,2]
[313155779,1706824246428,-152.96391308,0.00048746,30]
[313155781,1706824246438,-7485.15785797,0.000488,10]
[313155783,1706824246447,-361.54578775,0.0004889,2]
[313155785,1706824246456,-1871.58,0.000489,7]
[313155788,1706824246466,-26380.1798053,0.000489,6]
[313155791,1706824246475,-26380.1798053,0.000489,6]
[313155793,1706824246485,-26380.1798053,0.000489,6]
[313155796,1706824246494,-26380.1798053,0.000489,6]
[313155799,1706824246503,-26380.1798053,0.000489,6]
[313155802,1706824246512,-26380.1798053,0.000489,6]
[313155805,1706824246521,-26380.1798053,0.000489,6]
[313155808,1706824246530,-26380.1798053,0.000489,6]
[313155811,1706824246539,-26380.1798053,0.000489,6]
[313155814,1706824246548,-26380.1788053,0.000489,6]
[313155817,1706824246557,-1876.07,0.000489,7]
[313155820,1706824246565,-150.0,0.00048989,60]
[313155823,1706824246575,-1008.27855556,0.0004899,5]
[313155826,1706824246584,-237.37806309,0.00049,120]
[313155828,1706824246592,-152.96391308,0.00049095,30]
[313155831,1706824246601,-157.0,0.000491,30]
[313155834,1706824246610,-163.0,0.00049131,28]
[313155837,1706824246618,-152.96391308,0.000492,30]
[313155840,1706824246627,-150.0,0.00049294,7]
[313155842,1706824246637,-500.0,0.00049315,31]
[313155846,1706824246646,-500.0,0.00049315,2]
[313155849,1706824246657,-679.72991797,0.00049315,120]
[313155851,1706824246665,-500.0,0.00049315,30]
[313155854,1706824246674,-1000.0,0.00049315,7]
[313155857,1706824246683,-735.52,0.00049315,7]
[313155860,1706824246692,-673.07,0.00049315,31]
[313155863,1706824246701,-500.0,0.00049315,10]
[313155866,1706824246711,-500.0,0.00049315,31]
[313155869,1706824246720,-500.0,0.00049315,31]
[313155872,1706824246729,-500.0,0.00049315,7]
[313155875,1706824246738,-500.0,0.00049315,31]
[313155878,1706824246747,-500.0,0.00049315,31]
[313155881,1706824246757,-1000.0,0.00049315,7]
[313155884,1706824246766,-500.0,0.00049315,5]
[313155887,1706824246775,-613.25,0.00049315,31]
[313155890,1706824246784,-500.0,0.00049315,31]
[313155893,1706824246793,-500.0,0.00049315,5]
[313155896,1706824246803,-500.0,0.00049315,31]
[313155899,1706824246812,-1230.8,0.00049315,31]
[313155902,1706824246821,-627.09686104,0.00049315,31]
[313155905,1706824246829,-500.0,0.00049315,31]
[313155908,1706824246838,-500.0,0.00049315,31]
[313155911,1706824246847,-500.0,0.00049315,31]
[313155913,1706824246857,-500.0,0.00049315,31]
[313155915,1706824246866,-500.0,0.00049315,31]
[313155917,1706824246875,-500.0,0.00049315,31]
[313155919,1706824246884,-500.0,0.00049315,31]
[313155922,1706824246894,-500.0,0.00049315,31]
[313155925,1706824246903,-500.0,0.00049315,31]
[313155928,1706824246912,-2400.0,0.00049315,15]
[313155931,1706824246921,-200.0,0.00049315,60]
[313155934,1706824246930,-155.0,0.00049317,2]
[313155937,1706824246939,-150.0,0.00049326,7]
[313155940,1706824246949,-150.0,0.00049333,7]
[313155943,1706824246958,-150.0,0.00049416,7]
[313155946,1706824246967,-151.51747848,0.00049432,30]
[313155949,1706824246976,-150.0,0.00049438,7]
[313155952,1706824246985,-226.0202,0.00049448,26]
[313155955,1706824246995,-150.0,0.00049452,7]
[313155958,1706824247004,-150.0,0.0004947,7]
[313155961,1706824247012,-150.0,0.00049487,7]
[313155964,1706824247022,-152.96391308,0.0004949,30]
[313155966,1706824247031,-200.0,0.000495,30]
[313155969,1706824247040,-800.0,0.000495,30]
[313155971,1706824247049,-150.0,0.0004951,7]
[313155973,1706824247059,-150.0,0.00049513,7]
[313155976,1706824247068,-150.0,0.00049516,7]
[313155979,1706824247076,-302.0,0.00049519,4]
[313155982,1706824247085,-150.0,0.00049538,7]
[313155985,1706824247094,-150.0,0.00049552,7]
[313155988,1706824247105,-150.0,0.00049584,7]
[313155991,1706824247114,-500.0,0.00049589,31]
[313155994,1706824247123,-500.0,0.00049589,2]
[313155997,1706824247133,-500.0,0.00049589,30]
[313156000,1706824247142,-1000.0,0.00049589,7]
[313156003,1706824247152,-735.52,0.00049589,7]
[313156006,1706824247161,-673.07,0.00049589,31]
[313156008,1706824247170,-500.0,0.00049589,10]
[313156010,1706824247179,-500.0,0.00049589,31]
[313156012,1706824247188,-500.0,0.00049589,31]
[313156014,1706824247199,-500.0,0.00049589,7]
[313156016,1706824247208,-500.0,0.00049589,31]
[313156018,1706824247217,-500.0,0.00049589,31]
[313156020,1706824247226,-1000.0,0.00049589,7]
[313156022,1706824247236,-500.0,0.00049589,5]
[313156024,1706824247246,-500.0,0.00049589,31]
[313156026,1706824247256,-500.0,0.00049589,5]
[313156028,1706824247266,-500.0,0.00049589,31]
[313156030,1706824247276,-1230.8,0.00049589,31]
[313156032,1706824247286,-500.0,0.00049589,31]
[313156034,1706824247295,-500.0,0.00049589,31]
[313156036,1706824247305,-420.89,0.00049589,31]
[313156037,1706824247314,-500.0,0.00049589,31]
[313156039,1706824247323,-524.02878606,0.00049589,31]
[313156042,1706824247334,-500.0,0.00049589,31]
[313156043,1706824247344,-500.0,0.00049589,31]
[313156045,1706824247353,-500.0,0.00049589,31]
[313156048,1706824247363,-500.0,0.00049589,31]
[313156049,1706824247372,-5000.0,0.00049635,4]
[313156051,1706824247381,-150.0,0.00049674,7]
[313156054,1706824247391,-1871.58,0.000497,7]
[313156055,1706824247401,-150.0,0.00049701,7]
[313156057,1706824247411,-150.0,0.00049728,7]
[313156059,1706824247421,-465.0,0.0004974,12]
[313156062,1706824247430,-465.0,0.0004974,12]
[313156064,1706824247440,-150.0,0.0004974,2]
[313156065,1706824247449,-150.0,0.00049741,7]
[313156067,1706824247458,-150.0,0.00049748,2]
[313156069,1706824247468,-500.50393407,0.00049758,60]
[313156072,1706824247478,-154.08981617,0.00049783,30]
[313156073,1706824247487,-470.0,0.0004979,2]
[313156075,1706824247497,-152.96391308,0.00049791,30]
[313156078,1706824247506,-269.09203502,0.00049797,2]
[313156079,1706824247515,-500.0,0.000498,120]
[313156081,1706824247525,-500.0,0.000498,120]
[313156083,1706824247533,-185.13,0.000498,6]
[313156085,1706824247542,-185.13,0.000498,6]
[313156087,1706824247551,-185.13,0.000498,6]
[313156089,1706824247559,-185.13,0.000498,6]
[313156091,1706824247569,-185.13,0.000498,6]
[313156093,1706824247578,-185.13,0.000498,6]
[313156095,1706824247587,-185.13,0.000498,6]
[313156097,1706824247596,-185.13,0.000498,6]
[313156099,1706824247605,-185.13,0.000498,6]
[313156101,1706824247614,-185.13,0.000498,6]
[313156103,1706824247624,-185.13,0.000498,6]
[313156105,1706824247633,-185.13,0.000498,6]
[313156107,1706824247642,-185.13,0.000498,6]
[313156109,1706824247652,-185.13,0.000498,6]
[313156111,1706824247661,-185.13,0.000498,6]
[313156113,1706824247670,-185.13,0.000498,6]
[313156115,1706824247679,-185.13,0.000498,6]
[313156117,1706824247688,-185.13,0.000498,6]
[313156119,1706824247697,-185.13,0.000498,6]
[313156121,1706824247706,-185.13,0.000498,6]
[313156123,1706824247716,-156.43,0.000498,6]
[313156125,1706824247725,-500.0,0.00049863,31]
[313156127,1706824247734,-500.0,0.00049863,2]
[313156129,1706824247743,-500.0,0.00049863,30]
[313156131,1706824247752,-1000.0,0.00049863,7]
[313156133,1706824247761,-735.52,0.00049863,7]
[313156135,1706824247771,-673.07,0.00049863,31]
[313156137,1706824247780,-500.0,0.00049863,10]
[313156139,1706824247789,-500.0,0.00049863,31]
[313156141,1706824247798,-500.0,0.00049863,31]
[313156143,1706824247807,-500.0,0.00049863,7]
[313156145,1706824247815,-500.0,0.00049863,31]
[313156147,1706824247825,-305.10645228,0.00049863,31]
[313156149,1706824247834,-396.23576011,0.00049863,7]
[313156151,1706824247844,-500.0,0.00049863,5]
[313156153,1706824247853,-500.0,0.00049863,31]
[313156155,1706824247862,-500.0,0.00049863,5]
[313156157,1706824247872,-500.0,0.00049863,31]
[313156159,1706824247881,-1230.8,0.00049863,31]
[313156161,1706824247891,-291.98,0.00049863,31]
[313156163,1706824247900,-500.0,0.00049863,31]
[313156165,1706824247909,-500.0,0.00049863,31]
[313156167,1706824247919,-500.0,0.00049863,31]
[313156169,1706824247929,-555.09640042,0.00049863,31]
[313156171,1706824247939,-500.0,0.00049863,31]
[313156173,1706824247949,-500.0,0.00049863,31]
[313156175,1706824247959,-400.0,0.0004987,3]
[313156177,1706824247968,-150.0,0.00049871,7]
[313156179,1706824247978,-122110.40458153,0.0004988,10]
[313156181,1706824247988,-4058.0,0.0004989,2]
[313156182,1706824247998,-2326.0,0.0004989,2]
[313156183,1706824248008,-150.0,0.00049897,7]
[313156184,1706824248018,-3306.75797983,0.00049899,2]
[313156185,1706824248027,-150.0,0.000499,40]
[313156186,1706824248037,-150.0,0.000499,31]
[313156187,1706824248046,-150.0,0.000499,27]
[313156188,1706824248056,-150.0,0.000499,58]
[313156189,1706824248065,-3000.0,0.000499,49]
[313156190,1706824248074,-1765.39914213,0.000499,2]
[313156191,1706824248084,-533.85083317,0.000499,14]
[313156192,1706824248093,-533.85083317,0.000499,14]
[313156193,1706824248103,-533.85083317,0.000499,14]
[313156194,1706824248112,-533.85083317,0.000499,14]
[313156195,1706824248121,-533.85083317,0.000499,14]
[313156196,1706824248131,-533.85083317,0.000499,14]
[313156197,1706824248140,-533.85083317,0.000499,14]
[313156198,1706824248153,-533.85083317,0.000499,14]
[313156199,1706824248162,-533.85083317,0.000499,14]
[313156200,1706824248172,-533.85083317,0.000499,14]
[313156201,1706824248181,-533.85083317,0.000499,14]
[313156202,1706824248192,-533.85083317,0.000499,14]
[313156203,1706824248201,-533.85083317,0.000499,14]
[313156204,1706824248210,-533.85083317,0.000499,14]
[313156205,1706824248219,-533.85083317,0.000499,14]
[313156206,1706824248228,-533.85083317,0.000499,14]
[313156207,1706824248237,-533.85083317,0.000499,14]
[313156208,1706824248246,-533.85083317,0.000499,14]
[313156209,1706824248256,-533.85083317,0.000499,14]
[313156210,1706824248265,-533.85,0.000499,14]
[313156211,1706824248274,-217.55816447,0.000499,14]
[313156212,1706824248284,-217.55816447,0.000499,14]
[313156213,1706824248294,-217.55816447,0.000499,14]
[313156214,1706824248303,-217.55816447,0.000499,14]
[313156215,1706824248312,-213.99,0.000499,14]
[313156216,1706824248457,-217.55816447,0.000499,14]
[313156217,1706824248467,-217.55816447,0.000499,14]
[313156218,1706824248477,-217.55816447,0.000499,14]
[313156219,1706824248487,-217.55816447,0.000499,14]
[313156220,1706824248496,-217.55816447,0.000499,14]
[313156221,1706824248506,-217.55816447,0.000499,14]
[313156222,1706824248516,-217.55816447,0.000499,14]
[313156223,1706824248525,-217.55816447,0.000499,14]
[313156224,1706824248535,-217.55816447,0.000499,14]
[313156225,1706824248544,-217.55816447,0.000499,14]
[313156226,1706824248553,-217.55816447,0.000499,14]
[313156227,1706824248562,-217.55816447,0.000499,14]
[313156228,1706824248572,-217.55816447,0.000499,14]
[313156229,1706824248581,-217.55816447,0.000499,14]
[313156230,1706824248591,-217.55816447,0.000499,14]
[313156231,1706824248600,-217.55,0.000499,14]
[313156232,1706824248610,-343.69562954,0.000499,14]
[313156233,1706824248619,-343.69562954,0.000499,14]
[313156234,1706824248628,-343.69562954,0.000499,14]
[313156235,1706824248638,-343.69562954,0.000499,14]
[313156236,1706824248650,-343.69562954,0.000499,14]
[313156237,1706824248660,-343.69562954,0.000499,14]
[313156238,1706824248669,-343.69562954,0.000499,14]
[313156239,1706824248678,-343.69562954,0.000499,14]
[313156240,1706824248687,-343.69562954,0.000499,14]
[313156241,1706824248698,-343.69562954,0.000499,14]
[313156242,1706824248707,-343.69562954,0.000499,14]
[313156243,1706824248716,-343.69562954,0.000499,14]
[313156244,1706824248725,-343.69562954,0.000499,14]
[313156245,1706824248735,-343.69562954,0.000499,14]
[313156246,1706824248744,-343.69562954,0.000499,14]
[313156247,1706824248754,-343.69562954,0.000499,14]
[313156248,1706824248764,-343.69562954,0.000499,14]
[313156249,1706824248773,-343.69562954,0.000499,14]
[313156250,1706824248783,-343.69562954,0.000499,14]
[313156251,1706824248792,-343.69,0.000499,14]
[313156252,1706824248801,-393.73769454,0.000499,14]
[313156253,1706824248810,-393.73769454,0.000499,14]
[313156254,1706824248819,-393.73769454,0.000499,14]
[313156255,1706824248828,-393.73769454,0.000499,14]
[313156256,1706824248837,-393.73769454,0.000499,14]
[313156257,1706824248846,-393.73769454,0.000499,14]
[313156258,1706824248854,-393.73769454,0.000499,14]
[313156259,1706824248863,-393.73769454,0.000499,14]
[313156260,1706824248872,-393.73769454,0.000499,14]
[313156261,1706824248881,-393.73769454,0.000499,14]
[313156262,1706824248890,-393.73769454,0.000499,14]
[313156263,1706824248903,-393.73769454,0.000499,14]
[313156264,1706824248911,-393.73769454,0.000499,14]
[313156265,1706824248921,-393.73769454,0.000499,14]
[313156266,1706824248929,-393.73769454,0.000499,14]
[313156267,1706824248938,-393.73769454,0.000499,14]
[313156268,1706824248947,-393.73769454,0.000499,14]
[313156269,1706824248956,-393.73769454,0.000499,14]
[313156270,1706824248965,-393.73769454,0.000499,14]
[313156271,1706824248974,-393.73,0.000499,14]